Cogmind - Beta 16 @@@ ROGUE MODE // 2026.02.04 @ 22:54:19 Player: verv Result: Destroyed by Y-45 Defender with Beam Rifle Performance ------------- Evolutions (0) 0 Regions Visited (2) 400 Robots Destroyed (16) 80 Value Destroyed (278) 278 Prototype IDs (0) 0 Alien Tech Used (0) 0 Bonus (0) 0 TOTAL SCORE: 758 Bonus ------- None Cogmind --------- Core Integrity 0/250 Matter 19/300 Energy 100/100 System Corruption 2% Temperature Cool (9) Movement Core (50) Location -10/Subcaves Parts ------- > --- POWER (1) -------- (None) > --- PROPULSION (2) --- (None) > --- UTILITY (2) ------ Signal Interpreter > --- WEAPON (2) ------- Light Assault Rifle > --- INVENTORY (5) ---- Visual Processing Unit Sensor Array Terrain Scanner Peak State ------------ > --- POWER ------------ Ion Engine > --- PROPULSION ------- Light Treads Light Treads > --- UTILITY ---------- Sensor Array Signal Interpreter > --- WEAPON ----------- Assault Rifle Grenade Launcher > --- INVENTORY -------- Small Storage Unit Terrain Scanner Assault Rifle Light Assault Rifle [Rating: 7] Favorites ----------- Power Ion Engine Engine Ion Engine Propulsion Light Treads Treads Light Treads Utility Signal Interpreter Device Sensor Array Storage Small Storage Unit Processor Signal Interpreter Weapon Assault Rifle Ballistic Gun Assault Rifle Launcher Grenade Launcher Special Melee Weapon Datajack Build | -11 -10 -10 ------- Run | Yrd Mat Sub Slots Evolved . | . . . Power . | . . . Propulsion . | . . . Utility . | . . . Weapon . | . . . Parts Attached 12 | 6 6 . Power 2 | 1 1 . Engine 2 | 1 1 . Core . | . . . Reactor . | . . . Propulsion 2 | 2 . . Treads 2 | 2 . . Leg . | . . . Wheel . | . . . Hover . | . . . Flight . | . . . Utility 3 | 1 2 . Device 1 | . 1 . Storage 1 | 1 . . Processor 1 | . 1 . Hackware . | . . . Protection . | . . . Artifact . | . . . Weapon 5 | 2 3 . Energy Gun . | . . . Energy Cannon . | . . . Ballistic Gun 3 | 2 1 . Ballistic Cannon . | . . . Launcher 1 | . 1 . Special Weapon . | . . . Impact Weapon . | . . . Slashing Weapon . | . . . Piercing Weapon . | . . . Special Melee Weapon 1 | . 1 . Unidentified Prototypes . | . . . Parts Lost 7 | . 3 4 Power 1 | . . 1 Propulsion 2 | . 1 1 Utility 1 | . . 1 Weapon 3 | . 2 1 Highest Loss Streak 4 | . 1 4 To Critical Strikes . | . . . Average Backups 3 | . 4 3 Power . | . . . Propulsion . | . . . Utility 2 | . 2 3 Weapon 1 | . 1 . Tool/Special . | . . . Unused Backups 3 | . . 3 Power . | . . . Propulsion . | . . . Utility 3 | . . 3 Weapon . | . . . Tool/Special . | . . . Average Slot Usage (%) 89 | . 91 45 Engine 13 | . 14 5 Treads 25 | . 26 2 Device 11 | . 12 5 Storage 1 | . 1 . Processor 12 | . 12 14 Ballistic Gun 13 | . 13 16 Launcher 4 | . 4 . Special Melee Weapon 5 | . 5 . Peak Build Rating 7 | 6 7 6 Average Rating 6 | 4 6 2 On Entrance 3 | . 6 5 Avg Prop Armor Cover (%) . | . . . Naked Turns . | . . . Heaviest Build 13 | 13 13 7 Greatest Support 40 | 40 40 3 Greatest Overweight (x) 4 | 4 . 2 Average Overweight (x) . | . . . Largest Inventory Capacity 8 | 8 8 5 Average Capacity 5 | 7 5 5 Most Carried 5 | 4 5 3 Average Carried 3 | . 4 3 Final Capacity 8 | 8 5 5 Final Carried 4 | . 4 3 Class Distribution -------------------- 100% | Mutant Dominant Class ---------------- Mutant | -10/Materials Mutant | -10/Subcaves Resources | -11 -10 -10 ----------- Run | Yrd Mat Sub Matter Collected 319 | 215 104 . Remotely . | . . . Salvage Created 214 | . 150 64 Parts 24 | . 16 8 Haulers Intercepted . | . . . Recyclers Shooed . | . . . Parts Field Recycled . | . . . Retrieved Matter . | . . . Parts Self-Destructed 8 | . . 8 Prevented . | . . . Parts Restored . | . . . Kills | -11 -10 -10 ------- Run | Yrd Mat Sub Combat Hostiles Destroyed 13 | . 9 4 Guns 5 | . 1 4 AOE 8 | . 8 . Classes Destroyed 4 | . 4 . Worker 1 | . 1 . Watcher 2 | . 2 . Swarmer 10 | . 6 4 Grunt 3 | . 3 . Best Kill Streak 4 | . 4 4 Combat Bots Only 4 | . 3 4 Max Kills in Single Turn 2 | . 2 1 Gunslinging . | . . . Exploded 2 | . 2 . Melee . | . . . Uniques/NPCs Destroyed . | . . . Combat | -11 -10 -10 -------- Run | Yrd Mat Sub Hostile Shots Fired 123 | . 54 69 Missed 36 | . 17 19 Hits 87 | . 37 50 Projectile 87 | . 37 50 Damage Taken 908 | . 497 411 Core 256 | . 82 174 Absorbed by Shields . | . . . Core Remaining (%) 100 | 100 . . Volleys Fired 36 | . 20 16 Largest 2 | . 2 2 Hottest 50 | . 50 40 Shots Fired 54 | . 36 18 Gun 41 | . 23 18 Cannon . | . . . Launcher 13 | . 13 . Special . | . . . Kinetic 41 | . 23 18 Thermal . | . . . Explosive 13 | . 13 . Electromagnetic . | . . . Robot Hit Streak 4 | . 3 4 Robot Miss Streak 4 | . 4 2 Penetration Max . | . . . Secondary Targets 1 | . . 1 Max Gunslinging Chain 1 | . . 1 Shots Hit Robots 24 | . 14 10 Core Hits 24 | . 19 5 Critical Kills . | . . . Critical Parts Destroyed . | . . . Critical Strikes . | . . . Melee Attacks 4 | . 4 . Impact . | . . . Slashing . | . . . Piercing . | . . . Sneak Attacks 4 | . 4 . Combat Hostiles . | . . . Follow-up Attacks . | . . . Damage Inflicted 694 | . 614 80 Guns 177 | . 97 80 Cannons . | . . . Explosions 515 | . 515 . Melee . | . . . Ramming 2 | . 2 . Kinetic 177 | . 97 80 Thermal . | . . . Explosive 515 | . 515 . Electromagnetic . | . . . Impact . | . . . Slashing . | . . . Piercing . | . . . Highest Corruption 2 | . 2 2 Average Corruption 2 | . 2 2 Corruption Purged . | . . . Corruption Blocked . | . . . Effects 5 | . 4 1 Message Errors 1 | . 1 . Matter Fused 2 | . 2 . Heat Flow Errors 1 | . . 1 Misfires 1 | . 1 . Overload Shots . | . . . Overflow Damage 14 | . 14 . Projectiles . | . . . Explosions 14 | . 14 . Melee . | . . . Knockbacks . | . . . Impact . | . . . Kinetic . | . . . Secondary . | . . . Self-Inflicted Damage 164 | . 164 . Shots 6 | . 6 . Rammed 1 | . 1 . Targets Rammed 1 | . 1 . Kicked . | . . . Crushed . | . . . Highest Temperature 94 | . 18 94 Average Temperature 21 | . 8 47 Received Heat Transfer 147 | . 57 90 Siege Activations . | . . . Martial Activations . | . . . Shielding Activations . | . . . Robots Disrupted . | . . . Combat Hostiles . | . . . Robots Corrupted . | . . . Combat Hostiles . | . . . Parts Fried . | . . . Impact Corruptions . | . . . Robots Melted . | . . . Combat Hostiles . | . . . Parts Melted . | . . . Heat Transferred . | . . . Parts Sabotaged . | . . . Parts Stolen . | . . . Parts Stripped . | . . . Power Chain Reactions . | . . . Alert | -11 -10 -10 ------- Run | Yrd Mat Sub Maximum Alert Level 1 | . 1 . Low Security (%) 88 | 100 87 . Level 1 11 | . 12 . Level 2 . | . . . Level 3 . | . . . Level 4 . | . . . Level 5 . | . . . High Security . | . . . Max Security . | . . . Peak Influence 230 | . 230 . Initial . | . . . Average 47 | . 50 . Influence Increases 688 | . 428 260 Destroy 0b10 Robot/C 260 | . 180 80 Destroy 0b10 Robot/NC 15 | . 15 . Destroy Leader 44 | . 44 . Successful Hack 4 | . 4 . Disable Machine 45 | . 45 . Destroy Structure 110 | . 110 . Lose Combat Pursuer 210 | . 30 180 Influence Decreases 384 | . 228 156 Entered New Map 96 | . . 96 Time Decay 218 | . 198 20 Lost Part 70 | . 30 40 Squads Dispatched 1 | . 1 . Investigation . | . . . Extermination . | . . . Reinforcement 1 | . 1 . Assault . | . . . Garrison . | . . . Intercept . | . . . Searches Triggered . | . . . Construction Impeded . | . . . Haulers Reinforced . | . . . Active Scanning Responses . | . . . Cargo Convoy Interrupts . | . . . Stealth | -11 -10 -10 --------- Run | Yrd Mat Sub Distress Signals 3 | . 3 . Communications Jammed . | . . . Distress Signals . | . . . Times Spotted 29 | . 17 12 Peak Tracking Total 8 | . 5 8 Tactical Retreats 4 | . 1 3 Traps | -11 -10 -10 ------- Run | Yrd Mat Sub Traps Triggered 1 | . 1 . Indirectly . | . . . Trap Hack Attempts . | . . . Triggered . | . . . Disarmed . | . . . Reprogrammed . | . . . Reused . | . . . Traps Extracted . | . . . Installed . | . . . Triggered . | . . . Machines | -11 -10 -10 ---------- Run | Yrd Mat Sub Machines Disabled 3 | . 3 . Max in Single Turn 1 | . 1 . Machines Repaired . | . . . Machines Dismantled . | . . . Machines Sabotaged . | . . . Overloaded Fab Kills . | . . . Hacking | -11 -10 -10 --------- Run | Yrd Mat Sub Machines Accessed 4 | . 4 . Terminals 2 | . 2 . Fabricators . | . . . Repair Stations . | . . . Recycling Units 2 | . 2 . Scanalyzers . | . . . Garrison Access . | . . . Total Hacks 6 | . 6 . Successful 5 | . 5 . Failed 1 | . 1 . Catastrophic . | . . . Database Lockouts . | . . . Manual . | . . . Terminals 3 | . 3 . Fabricators . | . . . Repair Stations . | . . . Recycling Units 3 | . 3 . Scanalyzers . | . . . Garrison Access . | . . . Terminal Hacks 2 | . 2 . Record 1 | . 1 . Emergency Access Points 1 | . 1 . Fabricator Hacks . | . . . Repair Station Hacks . | . . . Recycling Unit Hacks 3 | . 3 . Report Inventory 2 | . 2 . Retrieve Components 1 | . 1 . Scanalyzer . | . . . Garrison Access Hacks . | . . . Unauthorized Hacks . | . . . Terminals . | . . . Fabricators . | . . . Repair Stations . | . . . Recycling Units . | . . . Scanalyzers . | . . . Garrison Access . | . . . Data Cores Recovered . | . . . Used . | . . . Hacking Detections 1 | . 1 . Full Trace Events . | . . . Feedback Events . | . . . Feedback Blocked . | . . . Robot Schematics Acquired . | . . . Robots Built . | . . . Authchips . | . . . Time . | . . . Total Robot Build Rating . | . . . Part Schematics Acquired . | . . . Parts Built . | . . . Authchips . | . . . Time . | . . . Total Part Build Rating . | . . . Part Studies Acquired . | . . . Parts Repaired . | . . . Time . | . . . Parts Recycled . | . . . Recycled Matter . | . . . Retrieved Matter . | . . . Retrieved Components 1 | . 1 . Parts Scanalyzed . | . . . Part Schematics Acquired . | . . . Parts Damaged . | . . . Bothacking | -11 -10 -10 ------------ Run | Yrd Mat Sub Used RIF Installer . | . . . Robots Hacked 1 | . 1 . Non-combat 1 | . 1 . Combat . | . . . Robot Hacks Applied 2 | . 2 . parse_system 1 | . 1 . no_distress 1 | . 1 . Relay Couplers Released . | . . . Fabnet Peak Effective % . | . . . Robots Rewired . | . . . Allies Hacked . | . . . Hacks Repelled . | . . . Allies | -11 -10 -10 -------- Run | Yrd Mat Sub Total Allies . | . . . Largest Group . | . . . Highest-Rated Group . | . . . Highest-Rated Ally . | . . . Total Orders . | . . . Ally Attacks . | . . . Total Damage . | . . . Kills . | . . . Allies Corrupted . | . . . Allies Melted . | . . . Intel | -11 -10 -10 ------- Run | Yrd Mat Sub Active Infowar (turns) 1001 | . 987 14 Sensors 1001 | . 987 14 Robot Analysis Total . | . . . Derelict Logs Recovered . | . . . Drone Launches . | . . . Drone Recoveries . | . . . Exploration | -11 -10 -10 ------------- Run | Yrd Mat Sub Turns Passed 1237 | 66 1124 47 Spaces Moved 670 | 39 614 17 Core 27 | 10 . 17 Treads 643 | 29 614 . Legs . | . . . Wheels . | . . . Hover . | . . . Flight . | . . . Fastest Speed 50 | 50 160 50 Average Speed 156 | 142 160 55 Slowest Speed 250 | 250 160 150 Overloaded Moves . | . . . Propulsion Burnouts . | . . . Robots Hopped . | . . . Potential Cave-ins . | . . . Cave-ins Triggered . | . . . Exploration Rate (%) 25 | 4 70 3 Regions Visited 2 Branch Regions 1 Pre-discovered Areas . | . . . Known Exits Taken 1 | . 1 . Unknown Exits Taken 1 | 1 . . Scrap Searched . | . . . Spaces Dug . | . . . Terrain Destroyed 105 | . 105 . Melee . | . . . Projectile . | . . . AOE 105 | . 105 . Terrain Rammed . | . . . Walls Destroyed . | . . . Machines Disabled . | . . . Actions | -11 -10 -10 --------- Run | Yrd Mat Sub Total 808 | 50 718 40 Wait 57 | . 51 6 Move 668 | 38 613 17 Hop . | . . . Pick Up 15 | 6 9 . Fast Attach . | . . . Attach 13 | 6 6 1 Detach 3 | . 3 . Swap 8 | . 8 . Drop 3 | . 3 . Fire 36 | . 20 16 Melee 4 | . 4 . Ram . | . . . Kick . | . . . Crush 1 | . 1 . Escape Stasis . | . . . Rewire . | . . . Trap . | . . . Miscellaneous . | . . . Route ------- -11/Scrapyard -10/Materials (discovered 3 exits: *Mat x2 / *Sub) -10/Subcaves (discovered 1 exit: [*Rec]) History --------- Turn | Location | Event 8 | -11/Scrapyard | Discovered new exit (range 16) 67 | -11/Scrapyard | Entered Materials 305 | -10/Materials | Build established: Mutant 329 | -10/Materials | Discovered new exit (range 10) 348 | -10/Materials | Identified exit to Subcaves 588 | -10/Materials | Discovered new exit (range 3) 589 | -10/Materials | Identified exit to Materials 782 | -10/Materials | Discovered exit to Materials (range 3) 1191 | -10/Materials | Entered Subcaves 1200 | -10/Subcaves | Discovered new exit (range 10) 1201 | -10/Subcaves | Core integrity fell below 50% 1214 | -10/Subcaves | Core integrity fell below 20% 1236 | -10/Subcaves | Lost 4 parts (1p1n1u1w) 1238 | -10/Subcaves | Destroyed by Y-45 Defender with Beam Rifle Last Messages --------------- K-01 Serf cleans the Matter Filter. Slammed into A-02 Transporter. LOCATION=SUBCAVES AMBIENT_HEAT=-10 GOAL=ESCAPE S-10 Pest springs to life. S-10 Pest destroyed. Switching to secondary target: Y-45 Defender. Assault Rifle destroyed. Lgt. Treads destroyed. EXIT=FOUND Ion Engine destroyed. Flight Unit fries itself beyond repair. Subatomizers dissect the Flight Unit. S-10 Pest destroyed. Sensor Array destroyed. S-10 Pest destroyed. Lgt. Assault Rifle fries itself beyond repair. System corrupted: Heat flow error (+119). Flight Unit fries itself beyond repair. Map ----- +----------------------------------------------------+ | ?????????????????????????????????????????????????? | | ?????????????????????????????????????????????????? | | ?????????????????????????????????????????????????? | | ?????????????????????????????????????????????????? | | ?????????????????????????????????????????????????? | | ?????????????????????????????????????????????????? | | ?????????????????????????????????????????????????? | | ?????????????????????????????????????????????????? | | ?????????????????????????????????????????????????? | | ????????????????????????????? % ????????????????? | | ????????????????????????????? ?????????????????? | | ???????????????????????????## ?????????????????? | | ??????????????????????????# %??????????????????? | | ?????????????????????????? % ???????????????????? | | ?????????????????????????? #???????????????????? | | ?????????????????????????? #???????????????????? | | ?????????????????????????? #???????????????????? | | ????????????????????????## #???????????????????? | | ??????????????????##??### #???????????????????? | | ??????????????????# ### # ##??????????????????? | | ???????????????????# ###????????????????? | | ??????????????????## # % #????????????????? | | ??????????????????# ### s% ## #????????????? | | ??????????????????##%#?## % #?????????????? | | ??????????????????##%##?# # #????????????? | | ?????????????????## #?#@ ##?# ## #???????????? | | ?????????????????# ###Y!#?????????#???????????? | | ?????????????????# %[ ##????????????????????? | | ?????????????????## & #????????????????????? | | ??????????????????# ?????????????? | | ??????????????????# ?????????????? | | ??????????????????###% ### ?????????????? | | ????????????????????? ? ??????????????? | | ????????????????????? %* ????????????????? | | ????????????????????? ## ????????????????? | | ???????????????????? t "#? ????????????????? | | ???????????????????? " " "#? ???????????????? | | ??????????????????? "" """"#?? ??????????????? | | ???????????????????#?#<#####?? ????????????????? | | ?????????????????????###?????????????????????????? | | ?????????????????????????????????????????????????? | | ?????????????????????????????????????????????????? | | ?????????????????????????????????????????????????? | | ?????????????????????????????????????????????????? | | ?????????????????????????????????????????????????? | | ?????????????????????????????????????????????????? | | ?????????????????????????????????????????????????? | | ?????????????????????????????????????????????????? | | ?????????????????????????????????????????????????? | | ?????????????????????????????????????????????????? | +----------------------------------------------------+ Best States ------------- Heat Dissipation 25 Energy Generation 10 Energy Capacity 250 Matter Stores 255 Matter Capacity 300 Sight Range 16 Robot Scan Range 14 Terrain Scan Density 10 Evasion (%) 50 Recoil Reduction 2 Item Schematics ----------------- None Robot Schematics ------------------ None Fabricated ------------ Nothing Repaired ---------- Nothing Studied --------- None Alien Tech Used ----------------- None Achievements -------------- None Challenges ------------ None Game ------ Seed PhasingArchitectTurbovents Manual? 0 Play Time 00:11:27 Cumulative 1.3 hours Start 2026.02.04 @ 22:43:45 End 2026.02.04 @ 22:54:19 Sessions 1 Manual Loads 0 Difficulty Rogue Special Mode None Game No. 5 Rogue 5 Adventurer 0 Explorer 0 Win Type - Total 0 Types 0/0/0/0/0/0/0/0/0/0 Lore% 1 Gallery% 4 Achievement% 5 Wizard Run 0 Options --------- Layout 1 ASCII 0 Keyboard 0 Movement Mouse Keybinds 0 Fullscreen 2 Font 32/SmallcapsGlow Map View 50x35 Zoom Use 0% Tactical HUD 0 Map Filters NONE Filters NONE Steam 1 RUN: 237162d4-4f33-4bff-b509-5b51c3c553bc